Workbook

Sheet tabula
C2: Ģimenes viktorīna (tiešsaistē / vebinārā) | 2026.gada 31.janvāris
B3: Grupa | C3: # | D3: Dalībnieks | Raunds | Tēma | E3: 1 | F3: 2 | G3: 3 | H3: 4 | I3: 5 | J3: 6 | K3: 7 | L3: 8 | M3: 9 | N3: 10 | O3: KOPĀ | P3: Laiks kopā uz pareizajām atbildēm | Q3: Pareizās atbildes (max) | R3: Vid.laiks uz 1 pareizo atb.
D4: Vidējie rādītāji | E4: =ROUND(AVERAGE(E5:E1688),1) -> 75.8 | F4: =ROUND(AVERAGE(F5:F1688),1) -> 136.3 | G4: =ROUND(AVERAGE(G5:G1688),1) -> 79.9 | H4: =ROUND(AVERAGE(H5:H1688),1) -> 96.3 | I4: =ROUND(AVERAGE(I5:I1688),1) -> 91.3 | J4: =ROUND(AVERAGE(J5:J1688),1) -> 110.7 | K4: =ROUND(AVERAGE(K5:K1688),1) -> 39.5 | L4: =ROUND(AVERAGE(L5:L1688),1) -> 150.3 | M4: =ROUND(AVERAGE(M5:M1688),1) -> 90.6 | N4: =ROUND(AVERAGE(N5:N1688),1) -> 57.8 | O4: =ROUND(AVERAGE(O5:O1688),1) -> 928.4 | P4: - | R4: -
B5: 1 | C5: 1 | D5: VMR | E5: 124 | F5: 158 | G5: 108 | H5: 117 | I5: 125 | J5: 135 | K5: 97 | L5: 168 | M5: 117 | N5: 78 | O5: =SUM(E5:N5) -> 1227 | P5: 05 min. 20,894 | Q5: 61 | R5: 05,261 sek.
B6: 3 | C6: 2 | D6: AR BELLU | E6: 86 | F6: 176 | G6: 114 | H6: 131 | I6: 116 | J6: 108 | K6: 88 | L6: 188 | M6: 97 | N6: 75 | O6: =SUM(E6:N6) -> 1179 | P6: 06 min. 42,308 | Q6: 60 | R6: 06,705 sek.
B7: 1 | C7: 3 | D7: D&G | E7: 92 | F7: 175 | G7: 94 | H7: 141 | I7: 108 | J7: 109 | K7: 90 | L7: 166 | M7: 99 | N7: 95 | O7: =SUM(E7:N7) -> 1169 | P7: 05 min. 28,377 | Q7: 58 | R7: 05,662 sek.
B8: 3 | C8: 4 | D8: Sindija DJV | E8: 111 | F8: 151 | G8: 111 | H8: 130 | I8: 110 | J8: 112 | K8: 72 | L8: 189 | M8: 106 | N8: 75 | O8: =SUM(E8:N8) -> 1167 | P8: 05 min. 00,653 | Q8: 57 | R8: 05,275 sek.
B9: 1 | C9: 5 | D9: Labais Krasts | E9: 101 | F9: 181 | G9: 64 | H9: 147 | I9: 129 | J9: 87 | K9: 62 | L9: 189 | M9: 130 | N9: 70 | O9: =SUM(E9:N9) -> 1160 | P9: 06 min. 08,861 | Q9: 58 | R9: 06,360 sek.
B10: 1 | C10: 6 | D10: STELLA | E10: 106 | F10: 150 | G10: 103 | H10: 137 | I10: 109 | J10: 127 | K10: 64 | L10: 181 | M10: 107 | N10: 71 | O10: =SUM(E10:N10) -> 1155 | P10: 07 min. 09,409 | Q10: 60 | R10: 07,157 sek.
B11: 2 | C11: 7 | D11: Podzinieks | E11: 113 | F11: 188 | G11: 104 | H11: 127 | I11: 63 | J11: 133 | K11: 69 | L11: 192 | M11: 89 | N11: 77 | O11: =SUM(E11:N11) -> 1155 | P11: 06 min. 19,283 | Q11: 58 | R11: 06,539 sek.
B12: 3 | C12: 8 | D12: Krastu grauzeeji | E12: 109 | F12: 132 | G12: 118 | H12: 123 | I12: 106 | J12: 130 | K12: 77 | L12: 177 | M12: 119 | N12: 61 | O12: =SUM(E12:N12) -> 1152 | P12: 06 min. 18,152 | Q12: 58 | R12: 06,520 sek.
B13: 2 | C13: 9 | D13: Himself | E13: 81 | F13: 179 | G13: 90 | H13: 127 | I13: 124 | J13: 99 | K13: 85 | L13: 160 | M13: 121 | N13: 77 | O13: =SUM(E13:N13) -> 1143 | P13: 09 min. 16,079 | Q13: 63 | R13: 08,827 sek.
B14: 2 | C14: 10 | D14: Badijs spēlē viktorīnu | E14: 110 | F14: 175 | G14: 81 | H14: 138 | I14: 137 | J14: 108 | K14: 37 | L14: 164 | M14: 105 | N14: 82 | O14: =SUM(E14:N14) -> 1137 | P14: 06 min. 03,849 | Q14: 58 | R14: 06,273 sek.
B15: 2 | C15: 11 | D15: Krēsla & Pults | E15: 100 | F15: 182 | G15: 94 | H15: 111 | I15: 117 | J15: 134 | K15: 54 | L15: 169 | M15: 107 | N15: 68 | O15: =SUM(E15:N15) -> 1136 | P15: 08 min. 13,794 | Q15: 61 | R15: 08,095 sek.
B16: 3 | C16: 12 | D16: nezinu | E16: 83 | F16: 132 | G16: 95 | H16: 121 | I16: 119 | J16: 142 | K16: 88 | L16: 163 | M16: 88 | N16: 103 | O16: =SUM(E16:N16) -> 1134 | P16: 08 min. 38,887 | Q16: 61 | R16: 08,506 sek.
B17: 1 | C17: 13 | D17: Kompetenta kompānija | E17: 106 | F17: 157 | G17: 111 | H17: 104 | I17: 118 | J17: 108 | K17: 75 | L17: 138 | M17: 128 | N17: 86 | O17: =SUM(E17:N17) -> 1131 | P17: 08 min. 38,852 | Q17: 61 | R17: 08,506 sek.
B18: 3 | C18: 14 | D18: Ļoti laba komanda | E18: 110 | F18: 156 | G18: 104 | H18: 101 | I18: 115 | J18: 83 | K18: 69 | L18: 178 | M18: 106 | N18: 101 | O18: =SUM(E18:N18) -> 1123 | P18: 08 min. 37,750 | Q18: 61 | R18: 08,488 sek.
B19: 3 | C19: 15 | D19: Robby&Pauly Company | E19: 70 | F19: 168 | G19: 100 | H19: 102 | I19: 88 | J19: 123 | K19: 57 | L19: 188 | M19: 130 | N19: 97 | O19: =SUM(E19:N19) -> 1123 | P19: 07 min. 03,558 | Q19: 58 | R19: 07,303 sek.
B20: 3 | C20: 16 | D20: Alises Cigoriņi | E20: 84 | F20: 162 | G20: 106 | H20: 84 | I20: 116 | J20: 119 | K20: 59 | L20: 174 | M20: 113 | N20: 104 | O20: =SUM(E20:N20) -> 1121 | P20: 07 min. 51,741 | Q20: 60 | R20: 07,862 sek.
B21: 1 | C21: 17 | D21: INDRIĶI | E21: 73 | F21: 175 | G21: 119 | H21: 122 | I21: 114 | J21: 135 | K21: 44 | L21: 157 | M21: 117 | N21: 54 | O21: =SUM(E21:N21) -> 1110 | P21: 05 min. 10,383 | Q21: 56 | R21: 05,543 sek.
B22: 1 | C22: 18 | D22: Riekstu mix | E22: 111 | F22: 153 | G22: 114 | H22: 83 | I22: 69 | J22: 103 | K22: 98 | L22: 189 | M22: 88 | N22: 95 | O22: =SUM(E22:N22) -> 1103 | P22: 05 min. 45,051 | Q22: 58 | R22: 05,949 sek.
B23: 3 | C23: 19 | D23: Google dažreiz nepalīdz | E23: 66 | F23: 125 | G23: 73 | H23: 76 | I23: 123 | J23: 139 | K23: 87 | L23: 188 | M23: 131 | N23: 94 | O23: =SUM(E23:N23) -> 1102 | P23: 07 min. 40,878 | Q23: 58 | R23: 07,946 sek.
C24: 20 | D24: #lidojosais mafins | E24: 94 | F24: 180 | G24: 93 | H24: 100 | I24: 94 | J24: 137 | K24: 99 | L24: 154 | M24: 90 | N24: 53 | O24: =SUM(E24:N24) -> 1094 | P24: 06 min. 54,402 | Q24: 57 | R24: 07,270 sek.
C25: 21 | D25: Radi | E25: 77 | F25: 175 | G25: 112 | H25: 94 | I25: 64 | J25: 135 | K25: 72 | L25: 173 | M25: 104 | N25: 75 | O25: =SUM(E25:N25) -> 1081 | P25: 06 min. 34,427 | Q25: 57 | R25: 06,920 sek.
C26: 22 | D26: Lielauces 3 gudrie | E26: 116 | F26: 166 | G26: 91 | H26: 105 | I26: 76 | J26: 137 | K26: 44 | L26: 160 | M26: 115 | N26: 70 | O26: =SUM(E26:N26) -> 1080 | P26: 05 min. 06,539 | Q26: 54 | R26: 05,677 sek.
C27: 23 | D27: Kokinatori | E27: 91 | F27: 164 | G27: 93 | H27: 96 | I27: 105 | J27: 118 | K27: 65 | L27: 144 | M27: 148 | N27: 51 | O27: =SUM(E27:N27) -> 1075 | P27: 06 min. 07,256 | Q27: 56 | R27: 06,558 sek.
C28: 24 | D28: Virsskaņas alus iznīcinātājs | E28: 96 | F28: 156 | G28: 62 | H28: 117 | I28: 94 | J28: 138 | K28: 49 | L28: 194 | M28: 124 | N28: 40 | O28: =SUM(E28:N28) -> 1070 | P28: 06 min. 56,901 | Q28: 56 | R28: 07,445 sek.
C29: 25 | D29: Banānu saldējums | E29: 103 | F29: 163 | G29: 114 | H29: 118 | I29: 96 | J29: 131 | K29: 18 | L29: 172 | M29: 104 | N29: 49 | O29: =SUM(E29:N29) -> 1068 | P29: 09 min. 16,933 | Q29: 61 | R29: 09,130 sek.
C30: 26 | D30: Zepelīni | E30: 68 | F30: 144 | G30: 85 | H30: 101 | I30: 107 | J30: 133 | K30: 72 | L30: 180 | M30: 112 | N30: 66 | O30: =SUM(E30:N30) -> 1068 | P30: 07 min. 41,325 | Q30: 57 | R30: 08,093 sek.
C31: 27 | D31: Terasītes gudrenieki | E31: 65 | F31: 139 | G31: 84 | H31: 135 | I31: 108 | J31: 110 | K31: 84 | L31: 167 | M31: 100 | N31: 74 | O31: =SUM(E31:N31) -> 1066 | P31: 08 min. 07,433 | Q31: 57 | R31: 08,551 sek.
C32: 28 | D32: Zemitānu stacija | E32: 59 | F32: 166 | G32: 96 | H32: 106 | I32: 118 | J32: 133 | K32: 50 | L32: 166 | M32: 116 | N32: 51 | O32: =SUM(E32:N32) -> 1061 | P32: 06 min. 57,995 | Q32: 57 | R32: 07,333 sek.
C33: 29 | D33: Četri Krabji | E33: 80 | F33: 143 | G33: 68 | H33: 144 | I33: 121 | J33: 130 | K33: 60 | L33: 190 | M33: 72 | N33: 52 | O33: =SUM(E33:N33) -> 1060 | P33: 07 min. 34,280 | Q33: 56 | R33: 08,112 sek.
C34: 30 | D34: Inspektors ZIRGĀĀ | E34: 70 | F34: 133 | G34: 92 | H34: 109 | I34: 99 | J34: 100 | K34: 66 | L34: 188 | M34: 107 | N34: 91 | O34: =SUM(E34:N34) -> 1055 | P34: 07 min. 30,390 | Q34: 58 | R34: 07,765 sek.
C35: 31 | D35: Pūkainie kaķēni | E35: 115 | F35: 139 | G35: 103 | H35: 123 | I35: 63 | J35: 135 | K35: 66 | L35: 127 | M35: 100 | N35: 77 | O35: =SUM(E35:N35) -> 1048 | P35: 06 min. 25,709 | Q35: 55 | R35: 07,013 sek.
C36: 32 | D36: Fērgusa komanda | E36: 103 | F36: 183 | G36: 107 | H36: 145 | I36: 40 | J36: 91 | K36: 8 | L36: 177 | M36: 108 | N36: 86 | O36: =SUM(E36:N36) -> 1048 | P36: 05 min. 56,875 | Q36: 54 | R36: 06,609 sek.
C37: 33 | D37: Zirņu ripinātāji | E37: 112 | F37: 142 | G37: 80 | H37: 111 | I37: 86 | J37: 102 | K37: 61 | L37: 178 | M37: 77 | N37: 97 | O37: =SUM(E37:N37) -> 1046 | P37: 07 min. 54,114 | Q37: 56 | R37: 08,466 sek.
C38: 34 | D38: Brūča Viļa cietie rieksti | E38: 92 | F38: 160 | G38: 82 | H38: 116 | I38: 79 | J38: 118 | K38: 60 | L38: 162 | M38: 129 | N38: 46 | O38: =SUM(E38:N38) -> 1044 | P38: 06 min. 57,114 | Q38: 55 | R38: 07,584 sek.
C39: 35 | D39: lemuri | E39: 78 | F39: 159 | G39: 55 | H39: 99 | I39: 99 | J39: 137 | K39: 73 | L39: 175 | M39: 117 | N39: 50 | O39: =SUM(E39:N39) -> 1042 | P39: 06 min. 30,630 | Q39: 55 | R39: 07,102 sek.
C40: 36 | D40: SAULES IELA | E40: 112 | F40: 136 | G40: 84 | H40: 143 | I40: 88 | J40: 92 | K40: 35 | L40: 170 | M40: 87 | N40: 92 | O40: =SUM(E40:N40) -> 1039 | P40: 09 min. 24,171 | Q40: 59 | R40: 09,562 sek.
C41: 37 | D41: Lacplesa 68 | E41: 112 | F41: 159 | G41: 90 | H41: 109 | I41: 80 | J41: 98 | K41: 32 | L41: 180 | M41: 100 | N41: 76 | O41: =SUM(E41:N41) -> 1036 | P41: 06 min. 27,089 | Q41: 55 | R41: 07,038 sek.
C42: 38 | D42: Kreisais Krasts | E42: 91 | F42: 123 | G42: 111 | H42: 105 | I42: 119 | J42: 111 | K42: 51 | L42: 143 | M42: 101 | N42: 79 | O42: =SUM(E42:N42) -> 1034 | P42: 06 min. 12,228 | Q42: 53 | R42: 07,023 sek.
C43: 39 | D43: RIEKSTIŅU ĢIMENE | E43: 105 | F43: 110 | G43: 97 | H43: 98 | I43: 92 | J43: 116 | K43: 52 | L43: 158 | M43: 149 | N43: 52 | O43: =SUM(E43:N43) -> 1029 | P43: 08 min. 20,227 | Q43: 56 | R43: 08,933 sek.
C44: 40 | D44: Vāveres kosmosā | E44: 116 | F44: 145 | G44: 116 | H44: 109 | I44: 88 | J44: 109 | K44: 20 | L44: 161 | M44: 81 | N44: 84 | O44: =SUM(E44:N44) -> 1029 | P44: 05 min. 46,516 | Q44: 54 | R44: 06,417 sek.
C45: 41 | D45: ZIEDIŅI | E45: 95 | F45: 132 | G45: 118 | H45: 118 | I45: 81 | J45: 111 | K45: 35 | L45: 190 | M45: 93 | N45: 55 | O45: =SUM(E45:N45) -> 1028 | P45: 08 min. 47,767 | Q45: 58 | R45: 09,099 sek.
C46: 42 | D46: Sipovics | E46: 88 | F46: 117 | G46: 61 | H46: 104 | I46: 109 | J46: 119 | K46: 94 | L46: 176 | M46: 90 | N46: 68 | O46: =SUM(E46:N46) -> 1026 | P46: 09 min. 07,844 | Q46: 59 | R46: 09,285 sek.
C47: 43 | D47: Pīrādziņi min bet nepadodas | E47: 70 | F47: 165 | G47: 65 | H47: 119 | I47: 133 | J47: 109 | K47: 32 | L47: 177 | M47: 105 | N47: 50 | O47: =SUM(E47:N47) -> 1025 | P47: 07 min. 01,128 | Q47: 55 | R47: 07,657 sek.
C48: 44 | D48: Gandrīz gaviļnieks un savējie | E48: 98 | F48: 148 | G48: 85 | H48: 111 | I48: 84 | J48: 108 | K48: 72 | L48: 152 | M48: 101 | N48: 63 | O48: =SUM(E48:N48) -> 1022 | P48: 10 min. 10,044 | Q48: 59 | R48: 10,340 sek.
C49: 45 | D49: Peļu pīcka | E49: 116 | F49: 150 | G49: 113 | H49: 56 | I49: 110 | J49: 130 | K49: 44 | L49: 126 | M49: 108 | N49: 67 | O49: =SUM(E49:N49) -> 1020 | P49: 05 min. 04,153 | Q49: 53 | R49: 05,739 sek.
C50: 46 | D50: Vājprāta Četrinieks | E50: 68 | F50: 132 | G50: 104 | H50: 75 | I50: 133 | J50: 92 | K50: 65 | L50: 165 | M50: 122 | N50: 62 | O50: =SUM(E50:N50) -> 1018 | P50: 08 min. 36,058 | Q50: 57 | R50: 09,054 sek.
C51: 47 | D51: ElinaKru | E51: 74 | F51: 155 | G51: 100 | H51: 121 | I51: 93 | J51: 63 | K51: 35 | L51: 185 | M51: 100 | N51: 92 | O51: =SUM(E51:N51) -> 1018 | P51: 07 min. 06,379 | Q51: 56 | R51: 07,948 sek.
C52: 48 | D52: Stirninieki | E52: 89 | F52: 158 | G52: 109 | H52: 74 | I52: 100 | J52: 87 | K52: 46 | L52: 183 | M52: 110 | N52: 61 | O52: =SUM(E52:N52) -> 1017 | P52: 06 min. 16,205 | Q52: 56 | R52: 06,718 sek.
C53: 49 | D53: I&S | E53: 86 | F53: 143 | G53: 84 | H53: 105 | I53: 87 | J53: 112 | K53: 44 | L53: 147 | M53: 98 | N53: 110 | O53: =SUM(E53:N53) -> 1016 | P53: 09 min. 15,839 | Q53: 58 | R53: 09,583 sek.
C54: 50 | D54: B-64 lauskis | E54: 109 | F54: 118 | G54: 95 | H54: 134 | I54: 88 | J54: 133 | K54: 22 | L54: 182 | M54: 90 | N54: 45 | O54: =SUM(E54:N54) -> 1016 | P54: 06 min. 30,117 | Q54: 52 | R54: 07,502 sek.
C55: 51 | D55: Britu zinatnieki | E55: 77 | F55: 187 | G55: 88 | H55: 62 | I55: 115 | J55: 96 | K55: 56 | L55: 182 | M55: 115 | N55: 35 | O55: =SUM(E55:N55) -> 1013 | P55: 05 min. 49,724 | Q55: 55 | R55: 06,359 sek.
C56: 52 | D56: Ruma Šķiņķis | E56: 104 | F56: 121 | G56: 115 | H56: 133 | I56: 125 | J56: 106 | K56: 31 | L56: 165 | M56: 84 | N56: 27 | O56: =SUM(E56:N56) -> 1011 | P56: 07 min. 21,578 | Q56: 53 | R56: 08,332 sek.
C57: 53 | D57: Dzeltenais sniegs | E57: 43 | F57: 187 | G57: 67 | H57: 111 | I57: 105 | J57: 116 | K57: 39 | L57: 146 | M57: 106 | N57: 87 | O57: =SUM(E57:N57) -> 1007 | P57: 07 min. 08,427 | Q57: 54 | R57: 07,934 sek.
C58: 54 | D58: 6Pupas | E58: 90 | F58: 116 | G58: 86 | H58: 104 | I58: 128 | J58: 126 | K58: 32 | L58: 154 | M58: 110 | N58: 46 | O58: =SUM(E58:N58) -> 992 | P58: 09 min. 27,945 | Q58: 56 | R58: 10,142 sek.
C59: 55 | D59: Picu ballīte | E59: 67 | F59: 142 | G59: 96 | H59: 121 | I59: 122 | J59: 108 | K59: 47 | L59: 154 | M59: 70 | N59: 61 | O59: =SUM(E59:N59) -> 988 | P59: 09 min. 16,934 | Q59: 57 | R59: 09,771 sek.
C60: 56 | D60: Pipariņi | E60: 109 | F60: 171 | G60: 65 | H60: 116 | I60: 106 | J60: 99 | K60: 42 | L60: 145 | M60: 94 | N60: 39 | O60: =SUM(E60:N60) -> 986 | P60: 08 min. 05,498 | Q60: 55 | R60: 08,827 sek.
C61: 57 | D61: STŪRĪŠI | E61: 72 | F61: 156 | G61: 38 | H61: 77 | I61: 105 | J61: 129 | K61: 55 | L61: 170 | M61: 110 | N61: 74 | O61: =SUM(E61:N61) -> 986 | P61: 07 min. 52,159 | Q61: 55 | R61: 08,585 sek.
C62: 58 | D62: Jaunzemieši | E62: 70 | F62: 163 | G62: 56 | H62: 97 | I62: 121 | J62: 126 | K62: 26 | L62: 156 | M62: 114 | N62: 54 | O62: =SUM(E62:N62) -> 983 | P62: 07 min. 26,937 | Q62: 53 | R62: 08,433 sek.
C63: 59 | D63: Ledus mellenes | E63: 54 | F63: 157 | G63: 88 | H63: 111 | I63: 113 | J63: 105 | K63: 40 | L63: 154 | M63: 117 | N63: 44 | O63: =SUM(E63:N63) -> 983 | P63: 06 min. 33,863 | Q63: 53 | R63: 07,431 sek.
C64: 60 | D64: Suiti | E64: 77 | F64: 156 | G64: 91 | H64: 115 | I64: 109 | J64: 111 | K64: 11 | L64: 116 | M64: 104 | N64: 90 | O64: =SUM(E64:N64) -> 980 | P64: 06 min. 55,181 | Q64: 53 | R64: 07,834 sek.
C65: 61 | D65: G Power | E65: 87 | F65: 116 | G65: 81 | H65: 88 | I65: 132 | J65: 112 | K65: 46 | L65: 147 | M65: 115 | N65: 56 | O65: =SUM(E65:N65) -> 980 | P65: 06 min. 49,125 | Q65: 51 | R65: 08,022 sek.
C66: 62 | D66: Twister&Dobby | E66: 100 | F66: 150 | G66: 108 | H66: 68 | I66: 88 | J66: 98 | K66: 12 | L66: 183 | M66: 73 | N66: 99 | O66: =SUM(E66:N66) -> 979 | P66: 06 min. 29,031 | Q66: 52 | R66: 07,481 sek.
C67: 63 | D67: Rūķis Stūķis | E67: 75 | F67: 139 | G67: 109 | H67: 120 | I67: 101 | J67: 90 | K67: 5 | L67: 192 | M67: 52 | N67: 94 | O67: =SUM(E67:N67) -> 977 | P67: 05 min. 59,308 | Q67: 51 | R67: 07,045 sek.
C68: 64 | D68: Lotte | E68: 81 | F68: 109 | G68: 65 | H68: 98 | I68: 106 | J68: 136 | K68: 102 | L68: 152 | M68: 107 | N68: 20 | O68: =SUM(E68:N68) -> 976 | P68: 05 min. 15,961 | Q68: 49 | R68: 06,448 sek.
C69: 65 | D69: GO59 | E69: 62 | F69: 179 | G69: 79 | H69: 112 | I69: 102 | J69: 103 | K69: 36 | L69: 170 | M69: 98 | N69: 29 | O69: =SUM(E69:N69) -> 970 | P69: 06 min. 44,145 | Q69: 52 | R69: 07,772 sek.
C70: 66 | D70: Dogmena fani | E70: 94 | F70: 80 | G70: 119 | H70: 104 | I70: 100 | J70: 104 | K70: 63 | L70: 143 | M70: 99 | N70: 63 | O70: =SUM(E70:N70) -> 969 | P70: 08 min. 10,825 | Q70: 54 | R70: 09,089 sek.
C71: 67 | D71: Aviatori | E71: 85 | F71: 198 | G71: 89 | H71: 86 | I71: 85 | J71: 131 | K71: 29 | L71: 148 | M71: 70 | N71: 47 | O71: =SUM(E71:N71) -> 968 | P71: 08 min. 18,871 | Q71: 56 | R71: 08,908 sek.
C72: 68 | D72: Kumeliņu tēja | E72: 88 | F72: 126 | G72: 73 | H72: 125 | I72: 80 | J72: 107 | K72: 26 | L72: 179 | M72: 88 | N72: 76 | O72: =SUM(E72:N72) -> 968 | P72: 07 min. 46,005 | Q72: 53 | R72: 08,793 sek.
C73: 69 | D73: UZRAUGI | E73: 82 | F73: 126 | G73: 116 | H73: 98 | I73: 108 | J73: 104 | K73: 9 | L73: 153 | M73: 94 | N73: 75 | O73: =SUM(E73:N73) -> 965 | P73: 07 min. 00,228 | Q73: 53 | R73: 07,929 sek.
C74: 70 | D74: Kikariguu | E74: 59 | F74: 187 | G74: 92 | H74: 106 | I74: 66 | J74: 125 | K74: 75 | L74: 144 | M74: 78 | N74: 29 | O74: =SUM(E74:N74) -> 961 | P74: 04 min. 00,071 | Q74: 48 | R74: 05,001 sek.
C75: 71 | D75: M.A.L.A | E75: 112 | F75: 164 | G75: 86 | H75: 105 | I75: 98 | J75: 131 | K75: -3 | L75: 154 | M75: 83 | N75: 28 | O75: =SUM(E75:N75) -> 958 | P75: 07 min. 12,449 | Q75: 52 | R75: 08,316 sek.
C76: 72 | D76: Kukurznīši | E76: 40 | F76: 166 | G76: 60 | H76: 127 | I76: 97 | J76: 108 | K76: 57 | L76: 145 | M76: 93 | N76: 60 | O76: =SUM(E76:N76) -> 953 | P76: 06 min. 15,230 | Q76: 50 | R76: 07,505 sek.
C77: 73 | D77: Žozefine | E77: 92 | F77: 90 | G77: 77 | H77: 92 | I77: 112 | J77: 112 | K77: 107 | L77: 155 | M77: 101 | N77: 12 | O77: =SUM(E77:N77) -> 950 | P77: 06 min. 42,697 | Q77: 50 | R77: 08,054 sek.
C78: 74 | D78: Cerību iela | E78: 59 | F78: 127 | G78: 86 | H78: 94 | I78: 84 | J78: 134 | K78: 42 | L78: 148 | M78: 88 | N78: 86 | O78: =SUM(E78:N78) -> 948 | P78: 07 min. 00,758 | Q78: 52 | R78: 08,092 sek.
C79: 75 | D79: Banāni | E79: 59 | F79: 116 | G79: 70 | H79: 114 | I79: 84 | J79: 119 | K79: 20 | L79: 187 | M79: 109 | N79: 65 | O79: =SUM(E79:N79) -> 943 | P79: 09 min. 51,108 | Q79: 56 | R79: 10,556 sek.
C80: 76 | D80: Karro | E80: 84 | F80: 137 | G80: 84 | H80: 122 | I80: 121 | J80: 95 | K80: 30 | L80: 166 | M80: 74 | N80: 29 | O80: =SUM(E80:N80) -> 942 | P80: 09 min. 58,996 | Q80: 54 | R80: 11,093 sek.
C81: 77 | D81: ROZĀ BANDA | E81: 86 | F81: 106 | G81: 105 | H81: 122 | I81: 59 | J81: 107 | K81: 7 | L81: 160 | M81: 111 | N81: 79 | O81: =SUM(E81:N81) -> 942 | P81: 08 min. 21,377 | Q81: 53 | R81: 09,460 sek.
C82: 78 | D82: Viena no Žorža siksnām | E82: 98 | F82: 114 | G82: 88 | H82: 60 | I82: 86 | J82: 120 | K82: 58 | L82: 143 | M82: 142 | N82: 33 | O82: =SUM(E82:N82) -> 942 | P82: 07 min. 56,882 | Q82: 53 | R82: 08,998 sek.
C83: 79 | D83: Ikabogs | E83: 66 | F83: 111 | G83: 48 | H83: 92 | I83: 89 | J83: 129 | K83: 54 | L83: 163 | M83: 104 | N83: 84 | O83: =SUM(E83:N83) -> 940 | P83: 11 min. 03,415 | Q83: 56 | R83: 11,847 sek.
C84: 80 | D84: Rinaldo | E84: 76 | F84: 116 | G84: 88 | H84: 72 | I84: 109 | J84: 126 | K84: 63 | L84: 173 | M84: 100 | N84: 17 | O84: =SUM(E84:N84) -> 940 | P84: 09 min. 23,530 | Q84: 54 | R84: 10,436 sek.
C85: 81 | D85: Spidumbumba | E85: 94 | F85: 159 | G85: 70 | H85: 75 | I85: 98 | J85: 99 | K85: 39 | L85: 156 | M85: 65 | N85: 84 | O85: =SUM(E85:N85) -> 939 | P85: 09 min. 27,511 | Q85: 56 | R85: 10,134 sek.
C86: 82 | D86: Dakstiņiela | E86: 106 | F86: 114 | G86: 110 | H86: 106 | I86: 126 | J86: 113 | K86: 0 | L86: 133 | M86: 68 | N86: 63 | O86: =SUM(E86:N86) -> 939 | P86: 09 min. 08,126 | Q86: 55 | R86: 09,966 sek.
C87: 83 | D87: 6.līnija | E87: 66 | F87: 131 | G87: 113 | H87: 93 | I87: 88 | J87: 59 | K87: 36 | L87: 177 | M87: 103 | N87: 71 | O87: =SUM(E87:N87) -> 937 | P87: 08 min. 18,281 | Q87: 54 | R87: 09,609 sek.
C88: 84 | D88: Majorāns | E88: 84 | F88: 95 | G88: 117 | H88: 104 | I88: 84 | J88: 97 | K88: 46 | L88: 165 | M88: 93 | N88: 52 | O88: =SUM(E88:N88) -> 937 | P88: 08 min. 13,901 | Q88: 52 | R88: 09,498 sek.
C89: 85 | D89: Dubultballīte | E89: 60 | F89: 138 | G89: 60 | H89: 107 | I89: 105 | J89: 132 | K89: 67 | L89: 117 | M89: 86 | N89: 62 | O89: =SUM(E89:N89) -> 934 | P89: 12 min. 13,280 | Q89: 58 | R89: 12,643 sek.
C90: 86 | D90: MIO | E90: 71 | F90: 117 | G90: 83 | H90: 123 | I90: 77 | J90: 111 | K90: 4 | L90: 166 | M90: 109 | N90: 72 | O90: =SUM(E90:N90) -> 933 | P90: 07 min. 30,402 | Q90: 53 | R90: 08,498 sek.
C91: 87 | D91: IlzeQueen | E91: 82 | F91: 136 | G91: 120 | H91: 85 | I91: 79 | J91: 108 | K91: 75 | L91: 114 | M91: 90 | N91: 44 | O91: =SUM(E91:N91) -> 933 | P91: 04 min. 31,555 | Q91: 48 | R91: 05,657 sek.
C92: 88 | D92: Ko mēs te dar? | E92: 96 | F92: 110 | G92: 86 | H92: 86 | I92: 61 | J92: 124 | K92: 8 | L92: 186 | M92: 116 | N92: 59 | O92: =SUM(E92:N92) -> 932 | P92: 08 min. 07,727 | Q92: 53 | R92: 09,202 sek.
C93: 89 | D93: Elektroni | E93: 67 | F93: 153 | G93: 109 | H93: 69 | I93: 64 | J93: 121 | K93: 37 | L93: 136 | M93: 104 | N93: 71 | O93: =SUM(E93:N93) -> 931 | P93: 10 min. 59,577 | Q93: 57 | R93: 11,572 sek.
C94: 90 | D94: Vienā laida | E94: 53 | F94: 107 | G94: 52 | H94: 107 | I94: 115 | J94: 133 | K94: 48 | L94: 167 | M94: 65 | N94: 82 | O94: =SUM(E94:N94) -> 929 | P94: 10 min. 20,796 | Q94: 55 | R94: 11,287 sek.
C95: 91 | D95: Nejauši ģēniji | E95: 62 | F95: 141 | G95: 47 | H95: 105 | I95: 123 | J95: 119 | K95: 43 | L95: 139 | M95: 80 | N95: 64 | O95: =SUM(E95:N95) -> 923 | P95: 10 min. 28,309 | Q95: 57 | R95: 11,023 sek.
C96: 92 | D96: Ūsiņas | E96: 84 | F96: 103 | G96: 68 | H96: 83 | I96: 97 | J96: 127 | K96: 34 | L96: 149 | M96: 131 | N96: 46 | O96: =SUM(E96:N96) -> 922 | P96: 10 min. 39,561 | Q96: 55 | R96: 11,628 sek.
C97: 93 | D97: Fiksie gliemeži | E97: 69 | F97: 137 | G97: 85 | H97: 119 | I97: 83 | J97: 125 | K97: 35 | L97: 125 | M97: 88 | N97: 54 | O97: =SUM(E97:N97) -> 920 | P97: 07 min. 01,610 | Q97: 50 | R97: 08,432 sek.
C98: 94 | D98: Kantoris3 | E98: 66 | F98: 164 | G98: 36 | H98: 97 | I98: 84 | J98: 125 | K98: 48 | L98: 171 | M98: 62 | N98: 59 | O98: =SUM(E98:N98) -> 912 | P98: 07 min. 01,841 | Q98: 51 | R98: 08,271 sek.
C99: 95 | D99: Gudri un vēl gudrāki | E99: 72 | F99: 150 | G99: 91 | H99: 112 | I99: 79 | J99: 109 | K99: 42 | L99: 132 | M99: 61 | N99: 64 | O99: =SUM(E99:N99) -> 912 | P99: 06 min. 15,519 | Q99: 49 | R99: 07,664 sek.
C100: 96 | D100: Pitijs | E100: 87 | F100: 118 | G100: 57 | H100: 103 | I100: 111 | J100: 100 | K100: 46 | L100: 168 | M100: 106 | N100: 16 | O100: =SUM(E100:N100) -> 912 | P100: 04 min. 40,908 | Q100: 46 | R100: 06,107 sek.
C101: 97 | D101: Zhengaivers | E101: 64 | F101: 184 | G101: 41 | H101: 104 | I101: 86 | J101: 121 | K101: -15 | L101: 177 | M101: 110 | N101: 36 | O101: =SUM(E101:N101) -> 908 | P101: 08 min. 09,487 | Q101: 53 | R101: 09,236 sek.
C102: 98 | D102: Kaķumāja | E102: 49 | F102: 164 | G102: 62 | H102: 63 | I102: 90 | J102: 116 | K102: 43 | L102: 188 | M102: 79 | N102: 51 | O102: =SUM(E102:N102) -> 905 | P102: 05 min. 47,859 | Q102: 51 | R102: 06,821 sek.
C103: 99 | D103: Cipiņas | E103: 74 | F103: 127 | G103: 63 | H103: 86 | I103: 97 | J103: 134 | K103: 51 | L103: 156 | M103: 67 | N103: 48 | O103: =SUM(E103:N103) -> 903 | P103: 12 min. 54,751 | Q103: 60 | R103: 12,913 sek.
C104: 100 | D104: Darza iela | E104: 78 | F104: 112 | G104: 68 | H104: 101 | I104: 65 | J104: 124 | K104: 22 | L104: 183 | M104: 61 | N104: 87 | O104: =SUM(E104:N104) -> 901 | P104: 09 min. 11,138 | Q104: 54 | R104: 10,206 sek.
C105: 101 | D105: SPARKO | E105: 88 | F105: 137 | G105: 63 | H105: 109 | I105: 95 | J105: 89 | K105: 21 | L105: 137 | M105: 82 | N105: 80 | O105: =SUM(E105:N105) -> 901 | P105: 06 min. 56,986 | Q105: 50 | R105: 08,340 sek.
C106: 102 | D106: Kapibaras | E106: 57 | F106: 140 | G106: 60 | H106: 107 | I106: 62 | J106: 115 | K106: 72 | L106: 152 | M106: 118 | N106: 16 | O106: =SUM(E106:N106) -> 899 | P106: 07 min. 36,372 | Q106: 49 | R106: 09,314 sek.
C107: 103 | D107: PutniņiCūciņas | E107: 74 | F107: 125 | G107: 82 | H107: 132 | I107: 113 | J107: 69 | K107: 38 | L107: 143 | M107: 81 | N107: 37 | O107: =SUM(E107:N107) -> 894 | P107: 04 min. 14,219 | Q107: 45 | R107: 05,649 sek.
C108: 104 | D108: Smilšu rukši | E108: 87 | F108: 139 | G108: 90 | H108: 123 | I108: 62 | J108: 105 | K108: 47 | L108: 153 | M108: 43 | N108: 37 | O108: =SUM(E108:N108) -> 886 | P108: 10 min. 05,867 | Q108: 53 | R108: 11,431 sek.
C109: 105 | D109: Neanterdālieši | E109: 42 | F109: 105 | G109: 93 | H109: 73 | I109: 97 | J109: 106 | K109: 36 | L109: 158 | M109: 97 | N109: 79 | O109: =SUM(E109:N109) -> 886 | P109: 08 min. 43,153 | Q109: 51 | R109: 10,258 sek.
C110: 106 | D110: Pūkanieši | E110: 94 | F110: 140 | G110: 70 | H110: 95 | I110: 88 | J110: 119 | K110: 38 | L110: 103 | M110: 84 | N110: 47 | O110: =SUM(E110:N110) -> 878 | P110: 08 min. 31,605 | Q110: 51 | R110: 10,031 sek.
C111: 107 | D111: Coolman | E111: 51 | F111: 122 | G111: 63 | H111: 112 | I111: 70 | J111: 126 | K111: 44 | L111: 142 | M111: 89 | N111: 57 | O111: =SUM(E111:N111) -> 876 | P111: 07 min. 36,864 | Q111: 49 | R111: 09,324 sek.
C112: 108 | D112: Augusts | E112: 38 | F112: 124 | G112: 85 | H112: 91 | I112: 66 | J112: 102 | K112: 69 | L112: 143 | M112: 67 | N112: 81 | O112: =SUM(E112:N112) -> 866 | P112: 07 min. 29,719 | Q112: 49 | R112: 09,178 sek.
C113: 109 | D113: Skrējēji | E113: 69 | F113: 182 | G113: 52 | H113: 91 | I113: 62 | J113: 122 | K113: 11 | L113: 160 | M113: 61 | N113: 53 | O113: =SUM(E113:N113) -> 863 | P113: 06 min. 36,258 | Q113: 49 | R113: 08,087 sek.
C114: 110 | D114: Kovaļovi | E114: 72 | F114: 143 | G114: 117 | H114: 86 | I114: 57 | J114: 110 | K114: 8 | L114: 138 | M114: 114 | N114: 14 | O114: =SUM(E114:N114) -> 859 | P114: 05 min. 58,965 | Q114: 47 | R114: 07,638 sek.
C115: 111 | D115: Zaiga | E115: 94 | F115: 93 | G115: 93 | H115: 70 | I115: 92 | J115: 107 | K115: 6 | L115: 155 | M115: 76 | N115: 72 | O115: =SUM(E115:N115) -> 858 | P115: 08 min. 49,719 | Q115: 53 | R115: 09,995 sek.
C116: 112 | D116: Vecie ērmi1 | E116: 67 | F116: 108 | G116: 41 | H116: 86 | I116: 88 | J116: 83 | K116: 79 | L116: 135 | M116: 97 | N116: 74 | O116: =SUM(E116:N116) -> 858 | P116: 09 min. 55,512 | Q116: 52 | R116: 11,452 sek.
C117: 113 | D117: Krasta grinči | E117: 108 | F117: 116 | G117: 41 | H117: 98 | I117: 43 | J117: 86 | K117: 40 | L117: 142 | M117: 114 | N117: 67 | O117: =SUM(E117:N117) -> 855 | P117: 06 min. 24,786 | Q117: 47 | R117: 08,187 sek.
C118: 114 | D118: Zviedrijas pīrādziņš | E118: 89 | F118: 130 | G118: 107 | H118: 86 | I118: 91 | J118: 92 | K118: -21 | L118: 133 | M118: 78 | N118: 69 | O118: =SUM(E118:N118) -> 854 | P118: 07 min. 34,070 | Q118: 50 | R118: 09,081 sek.
C119: 115 | D119: GANDRĪZ TIKAI MEITENES | E119: 113 | F119: 97 | G119: 99 | H119: 90 | I119: 74 | J119: 103 | K119: 20 | L119: 134 | M119: 54 | N119: 69 | O119: =SUM(E119:N119) -> 853 | P119: 12 min. 25,847 | Q119: 55 | R119: 13,561 sek.
C120: 116 | D120: Ūdi badā | E120: 77 | F120: 116 | G120: 93 | H120: 96 | I120: 77 | J120: 83 | K120: 4 | L120: 132 | M120: 86 | N120: 85 | O120: =SUM(E120:N120) -> 849 | P120: 10 min. 39,204 | Q120: 53 | R120: 12,060 sek.
C121: 117 | D121: Kukulitis | E121: 72 | F121: 125 | G121: 48 | H121: 84 | I121: 103 | J121: 106 | K121: 41 | L121: 144 | M121: 91 | N121: 34 | O121: =SUM(E121:N121) -> 848 | P121: 08 min. 05,409 | Q121: 49 | R121: 09,906 sek.
C122: 118 | D122: Loly 67 | E122: 63 | F122: 104 | G122: 80 | H122: 116 | I122: 132 | J122: 82 | K122: 43 | L122: 141 | M122: 75 | N122: 0 | O122: =SUM(E122:N122) -> 836 | P122: 04 min. 18,081 | Q122: 42 | R122: 06,145 sek.
C123: 119 | D123: Pakalnes iela | E123: 43 | F123: 73 | G123: 110 | H123: 94 | I123: 96 | J123: 106 | K123: 29 | L123: 141 | M123: 68 | N123: 69 | O123: =SUM(E123:N123) -> 829 | P123: 08 min. 38,247 | Q123: 49 | R123: 10,576 sek.
C124: 120 | D124: KM5 | E124: 46 | F124: 112 | G124: 98 | H124: 83 | I124: 75 | J124: 110 | K124: 15 | L124: 122 | M124: 85 | N124: 83 | O124: =SUM(E124:N124) -> 829 | P124: 07 min. 41,065 | Q124: 48 | R124: 09,606 sek.
C125: 121 | D125: Kartupelis(Samanta) | E125: 57 | F125: 145 | G125: 131 | H125: 75 | I125: 93 | J125: 120 | K125: -39 | L125: 90 | M125: 64 | N125: 92 | O125: =SUM(E125:N125) -> 828 | P125: 07 min. 11,423 | Q125: 51 | R125: 08,459 sek.
C126: 122 | D126: LeonidasJybilejasBrovstas | E126: 54 | F126: 93 | G126: 50 | H126: 89 | I126: 76 | J126: 98 | K126: 41 | L126: 151 | M126: 86 | N126: 90 | O126: =SUM(E126:N126) -> 828 | P126: 07 min. 48,317 | Q126: 48 | R126: 09,757 sek.
C127: 123 | D127: Lidojošā_sviestMaize | E127: 84 | F127: 76 | G127: 74 | H127: 67 | I127: 99 | J127: 124 | K127: 56 | L127: 114 | M127: 80 | N127: 52 | O127: =SUM(E127:N127) -> 826 | P127: 08 min. 56,089 | Q127: 50 | R127: 10,722 sek.
C128: 124 | D128: Blekas magic | E128: 52 | F128: 99 | G128: 85 | H128: 75 | I128: 34 | J128: 77 | K128: 71 | L128: 159 | M128: 136 | N128: 38 | O128: =SUM(E128:N128) -> 826 | P128: 08 min. 09,563 | Q128: 49 | R128: 09,991 sek.
C129: 125 | D129: AukstiNav | E129: 45 | F129: 111 | G129: 89 | H129: 109 | I129: 92 | J129: 119 | K129: 0 | L129: 136 | M129: 92 | N129: 33 | O129: =SUM(E129:N129) -> 826 | P129: 07 min. 26,804 | Q129: 47 | R129: 09,506 sek.
C130: 126 | D130: Baltās čībiņas | E130: 92 | F130: 66 | G130: 88 | H130: 86 | I130: 71 | J130: 88 | K130: 35 | L130: 154 | M130: 94 | N130: 46 | O130: =SUM(E130:N130) -> 820 | P130: 09 min. 46,556 | Q130: 50 | R130: 11,731 sek.
C131: 127 | D131: es nezinu | E131: 37 | F131: 100 | G131: 72 | H131: 86 | I131: 98 | J131: 108 | K131: 58 | L131: 140 | M131: 61 | N131: 60 | O131: =SUM(E131:N131) -> 820 | P131: 07 min. 48,193 | Q131: 48 | R131: 09,754 sek.
C132: 128 | D132: Aconis67 | E132: 96 | F132: 164 | G132: 75 | H132: 81 | I132: 42 | J132: 109 | K132: 28 | L132: 110 | M132: 98 | N132: 15 | O132: =SUM(E132:N132) -> 818 | P132: 06 min. 18,988 | Q132: 46 | R132: 08,239 sek.
C133: 129 | D133: Ruu | E133: 57 | F133: 166 | G133: 91 | H133: 67 | I133: 77 | J133: 95 | K133: 20 | L133: 150 | M133: 62 | N133: 26 | O133: =SUM(E133:N133) -> 811 | P133: 08 min. 41,494 | Q133: 49 | R133: 10,643 sek.
C134: 130 | D134: Lieliskais gadsimts | E134: 71 | F134: 113 | G134: 64 | H134: 47 | I134: 88 | J134: 103 | K134: 67 | L134: 102 | M134: 76 | N134: 79 | O134: =SUM(E134:N134) -> 810 | P134: 12 min. 22,362 | Q134: 54 | R134: 13,747 sek.
C135: 131 | D135: Vilkoga | E135: 84 | F135: 106 | G135: 34 | H135: 57 | I135: 118 | J135: 107 | K135: 89 | L135: 116 | M135: 87 | N135: 5 | O135: =SUM(E135:N135) -> 803 | P135: 09 min. 48,618 | Q135: 51 | R135: 11,542 sek.
C136: 132 | D136: Elizabetes ielas iedzīvotāji | E136: 69 | F136: 139 | G136: 34 | H136: 71 | I136: 67 | J136: 105 | K136: 95 | L136: 139 | M136: 47 | N136: 33 | O136: =SUM(E136:N136) -> 799 | P136: 09 min. 56,353 | Q136: 49 | R136: 12,170 sek.
C137: 133 | D137: Ozo Family | E137: 61 | F137: 130 | G137: 76 | H137: 62 | I137: 103 | J137: 109 | K137: 36 | L137: 109 | M137: 89 | N137: 16 | O137: =SUM(E137:N137) -> 791 | P137: 05 min. 32,619 | Q137: 43 | R137: 07,735 sek.
C138: 134 | D138: Nameiz | E138: 96 | F138: 125 | G138: 62 | H138: 116 | I138: 63 | J138: 114 | K138: -4 | L138: 153 | M138: 52 | N138: 13 | O138: =SUM(E138:N138) -> 790 | P138: 08 min. 01,247 | Q138: 46 | R138: 10,462 sek.
C139: 135 | D139: Grāvīša komanda | E139: 56 | F139: 120 | G139: 57 | H139: 38 | I139: 95 | J139: 107 | K139: 26 | L139: 123 | M139: 90 | N139: 77 | O139: =SUM(E139:N139) -> 789 | P139: 08 min. 35,106 | Q139: 49 | R139: 10,512 sek.
C140: 136 | D140: NeonBears | E140: 82 | F140: 117 | G140: 51 | H140: 87 | I140: 112 | J140: 102 | K140: 6 | L140: 120 | M140: 78 | N140: 28 | O140: =SUM(E140:N140) -> 783 | P140: 07 min. 19,537 | Q140: 46 | R140: 09,555 sek.
C141: 137 | D141: DIHS | E141: 52 | F141: 127 | G141: 50 | H141: 82 | I141: 58 | J141: 124 | K141: -17 | L141: 143 | M141: 107 | N141: 55 | O141: =SUM(E141:N141) -> 781 | P141: 09 min. 00,418 | Q141: 49 | R141: 11,029 sek.
C142: 138 | D142: Agilla | E142: 68 | F142: 130 | G142: 87 | H142: 82 | I142: 96 | J142: 64 | K142: 5 | L142: 127 | M142: 82 | N142: 38 | O142: =SUM(E142:N142) -> 779 | P142: 11 min. 43,383 | Q142: 52 | R142: 13,527 sek.
C143: 139 | D143: Gatis | E143: 45 | F143: 103 | G143: 66 | H143: 63 | I143: 56 | J143: 117 | K143: 54 | L143: 131 | M143: 89 | N143: 48 | O143: =SUM(E143:N143) -> 772 | P143: 07 min. 49,932 | Q143: 46 | R143: 10,216 sek.
C144: 140 | D144: Emix&Co | E144: 44 | F144: 155 | G144: 62 | H144: 82 | I144: 41 | J144: 113 | K144: -1 | L144: 162 | M144: 79 | N144: 29 | O144: =SUM(E144:N144) -> 766 | P144: 08 min. 33,475 | Q144: 47 | R144: 10,925 sek.
C145: 141 | D145: Četri prāti | E145: 46 | F145: 146 | G145: 43 | H145: 69 | I145: 85 | J145: 106 | K145: 12 | L145: 154 | M145: 58 | N145: 41 | O145: =SUM(E145:N145) -> 760 | P145: 06 min. 40,588 | Q145: 45 | R145: 08,902 sek.
C146: 142 | D146: Kapteinis un draugi | E146: 65 | F146: 131 | G146: 56 | H146: 54 | I146: 45 | J146: 98 | K146: 31 | L146: 133 | M146: 82 | N146: 62 | O146: =SUM(E146:N146) -> 757 | P146: 06 min. 32,773 | Q146: 44 | R146: 08,927 sek.
C147: 143 | D147: Morics67 | E147: 69 | F147: 96 | G147: 48 | H147: 110 | I147: 83 | J147: 117 | K147: 39 | L147: 82 | M147: 77 | N147: 34 | O147: =SUM(E147:N147) -> 755 | P147: 07 min. 31,531 | Q147: 45 | R147: 10,034 sek.
C148: 144 | D148: Tušķu banda | E148: 33 | F148: 122 | G148: 60 | H148: 58 | I148: 100 | J148: 99 | K148: 5 | L148: 150 | M148: 60 | N148: 64 | O148: =SUM(E148:N148) -> 751 | P148: 05 min. 52,422 | Q148: 43 | R148: 08,196 sek.
C149: 145 | D149: Zīmes Līmulis | E149: 89 | F149: 151 | G149: 65 | H149: 68 | I149: 73 | J149: 119 | K149: -11 | L149: 90 | M149: 80 | N149: 24 | O149: =SUM(E149:N149) -> 748 | P149: 06 min. 25,768 | Q149: 45 | R149: 08,573 sek.
C150: 146 | D150: EnDiNi | E150: 90 | F150: 124 | G150: 47 | H150: 46 | I150: 86 | J150: 100 | K150: -13 | L150: 173 | M150: 41 | N150: 54 | O150: =SUM(E150:N150) -> 748 | P150: 06 min. 24,904 | Q150: 43 | R150: 08,951 sek.
C151: 147 | D151: 67sixseven | E151: 30 | F151: 45 | G151: 99 | H151: 109 | I151: 84 | J151: 108 | K151: 37 | L151: 155 | M151: 20 | N151: 60 | O151: =SUM(E151:N151) -> 747 | P151: 07 min. 02,288 | Q151: 42 | R151: 10,054 sek.
C152: 148 | D152: Nenormālie | E152: 58 | F152: 143 | G152: 32 | H152: 85 | I152: 68 | J152: 102 | K152: 25 | L152: 109 | M152: 53 | N152: 62 | O152: =SUM(E152:N152) -> 737 | P152: 10 min. 13,285 | Q152: 48 | R152: 12,777 sek.
C153: 149 | D153: Ginta | E153: 38 | F153: 105 | G153: 39 | H153: 50 | I153: 115 | J153: 94 | K153: 53 | L153: 124 | M153: 72 | N153: 24 | O153: =SUM(E153:N153) -> 714 | P153: 08 min. 29,968 | Q153: 45 | R153: 11,333 sek.
C154: 150 | D154: Mega gudrie | E154: 37 | F154: 176 | G154: 62 | H154: 49 | I154: 76 | J154: 131 | K154: -26 | L154: 134 | M154: 54 | N154: 19 | O154: =SUM(E154:N154) -> 712 | P154: 05 min. 49,426 | Q154: 42 | R154: 08,320 sek.
C155: 151 | D155: Jenotsuns | E155: 23 | F155: 128 | G155: 67 | H155: 69 | I155: 44 | J155: 93 | K155: 4 | L155: 133 | M155: 54 | N155: 70 | O155: =SUM(E155:N155) -> 685 | P155: 06 min. 13,143 | Q155: 42 | R155: 08,884 sek.
C156: 152 | D156: Slapjie bandīti | E156: 44 | F156: 113 | G156: 63 | H156: 70 | I156: 82 | J156: 123 | K156: 1 | L156: 91 | M156: 75 | N156: 9 | O156: =SUM(E156:N156) -> 671 | P156: 05 min. 13,331 | Q156: 39 | R156: 08,034 sek.
C157: 153 | D157: Četri F | E157: 22 | F157: 121 | G157: 61 | H157: 66 | I157: 54 | J157: 105 | K157: 1 | L157: 121 | M157: 60 | N157: 57 | O157: =SUM(E157:N157) -> 668 | P157: 06 min. 37,491 | Q157: 41 | R157: 09,695 sek.
C158: 154 | D158: MoMiMeMaTe | E158: 68 | F158: 96 | G158: 96 | H158: 122 | I158: 90 | J158: 138 | K158: 35 | L158: 21 | M158: 0 | N158: 0 | O158: =SUM(E158:N158) -> 666 | P158: 05 min. 40,396 | Q158: 39 | R158: 08,774 sek.
C159: 155 | D159: Karstās čiksas | E159: 48 | F159: 115 | G159: 36 | H159: 84 | I159: 60 | J159: 60 | K159: -2 | L159: 132 | M159: 75 | N159: 30 | O159: =SUM(E159:N159) -> 638 | P159: 08 min. 43,226 | Q159: 41 | R159: 12,762 sek.
C160: 156 | D160: Janisvalm | E160: 0 | F160: 146 | G160: 36 | H160: 34 | I160: 62 | J160: 84 | K160: -24 | L160: 133 | M160: 58 | N160: 67 | O160: =SUM(E160:N160) -> 596 | P160: 04 min. 30,644 | Q160: 36 | R160: 07,518 sek.
C161: 157 | D161: Čopsteri | E161: 42 | F161: 132 | G161: 47 | H161: 43 | I161: 78 | J161: 96 | K161: -9 | L161: 87 | M161: 73 | N161: 0 | O161: =SUM(E161:N161) -> 589 | P161: 09 min. 18,204 | Q161: 43 | R161: 12,981 sek.
C162: 158 | D162: Blusas | E162: 0 | F162: 131 | G162: 0 | H162: 60 | I162: 42 | J162: 104 | K162: -2 | L162: 107 | M162: 46 | N162: 49 | O162: =SUM(E162:N162) -> 537 | P162: 05 min. 06,803 | Q162: 34 | R162: 06,673 sek.
C163: 159 | D163: Ievēns | E163: 53 | F163: 133 | G163: 16 | H163: 40 | I163: 86 | J163: 95 | K163: -46 | L163: 44 | M163: 93 | N163: 21 | O163: =SUM(E163:N163) -> 535 | P163: 07 min. 03,611 | Q163: 38 | R163: 11,148 sek.
C164: 162 | D164: Seski10 | E164: 9 | F164: 86 | G164: 19 | H164: 68 | I164: 72 | J164: 103 | K164: 18 | L164: 66 | M164: 47 | N164: 28 | O164: =SUM(E164:N164) -> 516 | P164: 08 min. 20,398 | Q164: 36 | R164: 13,900 sek.

Sheet raundi
B2: =CONCATENATE(tabula!C2," --> Raundu uzvarētāji") -> Ģimenes viktorīna (tiešsaistē / vebinārā) | 2026.gada 31.janvāris --> Raundu uzvarētāji
B3: # | C3: Dalībnieks | D3: Rezultāts | E3: AVG
B4: 1 | C4: VMR | D4: 124 | E4: =TRANSPOSE(tabula!E4:N4) -> 75.8
B5: 2 | C5: Aviatori | D5: 198 | E5: 136.3
B6: 3 | C6: Kartupelis(Samanta) | D6: 131 | E6: 79.9
B7: 4 | C7: Labais Krasts | D7: 147 | E7: 96.3
B8: 5 | C8: Badijs spēlē viktorīnu | D8: 137 | E8: 91.3
B9: 6 | C9: nezinu | D9: 142 | E9: 110.7
B10: 7 | C10: Žozefine | D10: 107 | E10: 39.5
B11: 8 | C11: Virsskaņas alus iznīcinātājs | D11: 194 | E11: 150.3
B12: 9 | C12: RIEKSTIŅU ĢIMENE | D12: 149 | E12: 90.6
B13: 10 | C13: I&S | D13: 110 | E13: 57.8
B14: - | C14: =tabula!D5 -> VMR | D14: =tabula!O5 -> 1227 | E14: =tabula!O4 -> 928.4
